fUSD/lending_fUSD_20260514
["ID","MTS","AMOUNT","RATE_DAILY","PERIOD"]
[422236901,1778739959000,767.0,0.00041203,30]
[422236902,1778739959000,2616.0,0.00041203,30]
[422236904,1778739993000,154.73,7.479e-05,2]
[422236903,1778739993000,154.73,6.925e-05,2]
[422236908,1778739994000,154.73,9.697e-05,2]
[422236907,1778739994000,154.73,9.142e-05,2]
[422236906,1778739994000,154.73,8.588e-05,2]
[422236905,1778739994000,154.73,8.033e-05,2]
[422236910,1778739995000,154.73,0.00010806,2]
[422236909,1778739995000,154.73,0.00010251,2]
[422236912,1778739995000,154.73,0.00011914,2]
[422236913,1778739995000,154.73,0.00012469,2]
[422236911,1778739995000,154.73,0.0001136,2]
[422236915,1778739996000,154.73,0.00013578,2]
[422236914,1778739996000,154.73,0.00013023,2]
[422236916,1778740017000,2000.0,0.00013558,2]
[422236917,1778740052000,386.98,0.00013516,2]
[422236918,1778740118000,200.0,0.00013467,2]
[422236920,1778740176000,214.42,0.00013804,2]
[422236919,1778740176000,214.42,0.00013467,2]
[422236940,1778740231000,-150.0,0.00014192,2]
[422236938,1778740231000,-2500.0,0.00014122,2]
[422236939,1778740231000,-214.42,0.00014141,2]
[422236934,1778740231000,-1200.0,0.00014121,2]
[422236935,1778740231000,-300.0,0.00014121,2]
[422236930,1778740231000,-275.0890246,0.00014045,2]
[422236926,1778740231000,-300.0,0.00014042,2]
[422236932,1778740231000,-300.0,0.00014097,2]
[422236931,1778740231000,-300.0,0.00014097,2]
[422236927,1778740231000,-475.52058283,0.00014045,2]
[422236929,1778740231000,-500.0,0.00014045,2]
[422236928,1778740231000,-1249.39039257,0.00014045,2]
[422236925,1778740231000,-373.23989656,0.00014039,2]
[422236933,1778740231000,-300.0,0.00014097,2]
[422236936,1778740231000,-2500.0,0.00014122,2]
[422236945,1778740231000,-150.0,0.00014237,2]
[422236942,1778740231000,-150.0,0.00014237,2]
[422236937,1778740231000,-2500.0,0.00014122,2]
[422236955,1778740231000,-150.0,0.00014332,2]
[422236953,1778740231000,-345.53231392,0.00014271,2]
[422236952,1778740231000,-500.0,0.00014271,2]
[422236954,1778740231000,-800.0,0.000143,5]
[422236951,1778740231000,-500.0,0.00014271,2]
[422236949,1778740231000,-500.0,0.00014271,2]
[422236956,1778740231000,-1300.0,0.000144,5]
[422236950,1778740231000,-500.0,0.00014271,2]
[422236948,1778740231000,-500.0,0.00014271,2]
[422236947,1778740231000,-150.0,0.0001427,2]
[422236943,1778740231000,-150.0,0.00014237,2]
[422236944,1778740231000,-150.0,0.00014237,2]
[422236946,1778740231000,-2443.43,0.00014237,2]
[422236941,1778740231000,-400.0,0.000142,5]
[422237024,1778740232000,-576.63468002,0.00014545,2]
[422237023,1778740232000,-500.0,0.00014545,2]
[422237022,1778740232000,-500.0,0.00014545,2]
[422237017,1778740232000,-500.0,0.00014545,2]
[422237021,1778740232000,-500.0,0.00014545,2]
[422237019,1778740232000,-500.0,0.00014545,2]
[422237018,1778740232000,-500.0,0.00014545,2]
[422237016,1778740232000,-500.0,0.00014545,2]
[422237013,1778740232000,-500.0,0.00014545,2]
[422237015,1778740232000,-500.0,0.00014545,2]
[422237025,1778740232000,-500.0,0.00014545,2]
[422237020,1778740232000,-500.0,0.00014545,2]
[422237026,1778740232000,-550.0,0.00014545,2]
[422237032,1778740232000,-500.0,0.00014545,2]
[422237027,1778740232000,-500.0,0.00014545,2]
[422237029,1778740232000,-292.32947923,0.00014545,2]
[422237034,1778740232000,-500.0,0.00014545,2]
[422237031,1778740232000,-522.53874522,0.00014545,2]
[422237037,1778740232000,-500.0,0.00014545,2]
[422237014,1778740232000,-500.0,0.00014545,2]
[422237041,1778740232000,-500.0,0.00014545,2]
[422237030,1778740232000,-500.0,0.00014545,2]
[422237033,1778740232000,-500.0,0.00014545,2]
[422237035,1778740232000,-500.0,0.00014545,2]
[422236963,1778740232000,-2500.0,0.00014446,2]
[422237040,1778740232000,-500.0,0.00014545,2]
[422237038,1778740232000,-500.0,0.00014545,2]
[422237028,1778740232000,-500.0,0.00014545,2]
[422237012,1778740232000,-500.0,0.00014545,2]
[422237000,1778740232000,-309.06011324,0.00014536,2]
[422237008,1778740232000,-500.0,0.00014545,2]
[422236958,1778740232000,-152.0,0.0001444,7]
[422236966,1778740232000,-504.23682033,0.0001446,2]
[422236961,1778740232000,-5000.0,0.00014446,2]
[422236964,1778740232000,-6349.97369777,0.0001446,2]
[422236960,1778740232000,-662.2777,0.00014445,2]
[422236968,1778740232000,-336.79903889,0.0001446,2]
[422236969,1778740232000,-3407.43517567,0.00014464,2]
[422236971,1778740232000,-225.13043304,0.00014469,2]
[422236973,1778740232000,-3860.77401885,0.00014469,2]
[422236984,1778740232000,-164.098,0.00014497,2]
[422236986,1778740232000,-7933.56,0.00014497,2]
[422236974,1778740232000,-150.0,0.00014473,2]
[422236977,1778740232000,-152.0,0.00014495,7]
[422236976,1778740232000,-214.42,0.00014477,2]
[422236982,1778740232000,-1645.819,0.00014497,2]
[422236979,1778740232000,-163.37,0.00014497,2]
[422236988,1778740232000,-1700.0,0.000145,5]
[422236993,1778740232000,-3860.77401876,0.00014516,2]
[422236991,1778740232000,-3407.43517566,0.00014512,2]
[422236998,1778740232000,-2961.55852493,0.00014535,2]
[422236996,1778740232000,-504.23682031,0.00014523,2]
[422237010,1778740232000,-500.21402607,0.00014545,2]
[422237011,1778740232000,-500.0,0.00014545,2]
[422237002,1778740232000,-500.0,0.00014545,2]
[422237006,1778740232000,-234.22762553,0.00014545,2]
[422237007,1778740232000,-601.04475255,0.00014545,2]
[422237004,1778740232000,-500.0,0.00014545,2]
[422237009,1778740232000,-210.34526784,0.00014545,2]
[422237039,1778740232000,-500.0,0.00014545,2]
[422237036,1778740232000,-500.0,0.00014545,2]
[422237045,1778740232000,-500.0,0.00014545,2]
[422237077,1778740232000,-500.0,0.00014545,2]
[422237078,1778740232000,-500.0,0.00014545,2]
[422237079,1778740232000,-500.0,0.00014545,2]
[422237080,1778740232000,-500.0,0.00014545,2]
[422237082,1778740232000,-500.0,0.00014545,2]
[422237081,1778740232000,-500.0,0.00014545,2]
[422237084,1778740232000,-500.0,0.00014545,2]
[422237083,1778740232000,-217.29280707,0.00014545,2]
[422237085,1778740232000,-500.0,0.00014545,2]
[422237086,1778740232000,-500.0,0.00014545,2]
[422237088,1778740232000,-500.0,0.00014545,2]
[422237089,1778740232000,-500.0,0.00014545,2]
[422237087,1778740232000,-500.0,0.00014545,2]
[422237074,1778740232000,-500.0,0.00014545,2]
[422237090,1778740232000,-500.0,0.00014545,2]
[422237098,1778740232000,-500.0,0.00014545,2]
[422237093,1778740232000,-500.0,0.00014545,2]
[422237091,1778740232000,-500.0,0.00014545,2]
[422237096,1778740232000,-300.0,0.00014545,2]
[422237097,1778740232000,-500.0,0.00014545,2]
[422237092,1778740232000,-500.0,0.00014545,2]
[422237095,1778740232000,-500.0,0.00014545,2]
[422237099,1778740232000,-499.99999999,0.00014545,2]
[422237101,1778740232000,-500.0,0.00014545,2]
[422237100,1778740232000,-614.80424491,0.00014545,2]
[422237102,1778740232000,-500.0,0.00014545,2]
[422237103,1778740232000,-500.0,0.00014545,2]
[422237042,1778740232000,-500.0,0.00014545,2]
[422237094,1778740232000,-500.0,0.00014545,2]
[422237073,1778740232000,-500.0,0.00014545,2]
[422237052,1778740232000,-500.0,0.00014545,2]
[422237072,1778740232000,-500.0,0.00014545,2]
[422237075,1778740232000,-500.0,0.00014545,2]
[422237047,1778740232000,-500.0,0.00014545,2]
[422237046,1778740232000,-500.0,0.00014545,2]
[422237044,1778740232000,-500.0,0.00014545,2]
[422237048,1778740232000,-500.0,0.00014545,2]
[422237050,1778740232000,-500.0,0.00014545,2]
[422237049,1778740232000,-500.0,0.00014545,2]
[422237051,1778740232000,-500.0,0.00014545,2]
[422237054,1778740232000,-500.0,0.00014545,2]
[422237053,1778740232000,-500.0,0.00014545,2]
[422237056,1778740232000,-500.0,0.00014545,2]
[422237055,1778740232000,-500.0,0.00014545,2]
[422237058,1778740232000,-500.0,0.00014545,2]
[422237057,1778740232000,-500.0,0.00014545,2]
[422237043,1778740232000,-500.0,0.00014545,2]
[422237064,1778740232000,-500.0,0.00014545,2]
[422237069,1778740232000,-500.0,0.00014545,2]
[422237071,1778740232000,-500.0,0.00014545,2]
[422237070,1778740232000,-500.0,0.00014545,2]
[422237060,1778740232000,-500.0,0.00014545,2]
[422237067,1778740232000,-500.0,0.00014545,2]
[422237068,1778740232000,-500.0,0.00014545,2]
[422237076,1778740232000,-500.0,0.00014545,2]
[422237065,1778740232000,-500.0,0.00014545,2]
[422237062,1778740232000,-500.0,0.00014545,2]
[422237059,1778740232000,-500.0,0.00014545,2]
[422237063,1778740232000,-500.0,0.00014545,2]
[422237061,1778740232000,-500.0,0.00014545,2]
[422237066,1778740232000,-500.0,0.00014545,2]
[422237105,1778740233000,-106959.0186376,0.00014546,2]
[422237106,1778740233000,-1337.70986208,0.00014546,2]
[422237104,1778740233000,-150.0,0.00014545,2]
[422237107,1778740233000,-1166.83551856,0.00014546,2]
[422237108,1778740233000,-225626.87214325,0.00014546,2]
[422237109,1778740233000,-30777.23857963,0.00014546,2]
[422237110,1778740233000,-43376.90137683,0.00014546,2]
[422237112,1778740233000,-5608.65899614,0.00014546,2]
[422237114,1778740233000,-1135.64999999,0.00014546,2]
[422237113,1778740233000,-834.34078709,0.00014546,2]
[422237111,1778740233000,-673.50309465,0.00014546,2]
[422237125,1778740237000,-3860.77401876,0.00014611,2]
[422237117,1778740237000,-1515899.19120418,0.00014546,2]
[422237118,1778740237000,-3407.43517566,0.0001456,2]
[422237119,1778740237000,-3860.77401876,0.00014564,2]
[422237120,1778740237000,-159.0,0.00014582,2]
[422237122,1778740237000,-2200.0,0.000146,5]
[422237121,1778740237000,-504.23682031,0.00014586,2]
[422237123,1778740237000,-500.0,0.00014603,2]
[422237124,1778740237000,-3407.43517566,0.00014608,2]
[422237126,1778740237000,-150.0,0.00014612,2]
[422237116,1778740237000,-1981.7184,0.00014546,2]
[422237127,1778740237000,-214.0,0.00014613,2]
[422237128,1778740237000,-504.23682031,0.00014649,2]
[422237138,1778740237000,-1000.0,0.00014731,2]
[422237136,1778740237000,-3860.77401876,0.00014706,2]
[422237135,1778740237000,-3407.43517566,0.00014704,2]
[422237129,1778740237000,-3407.43517566,0.00014656,2]
[422237137,1778740237000,-504.23682031,0.00014711,2]
[422237131,1778740237000,-336.79903888,0.0001468,2]
[422237134,1778740237000,-400.0,0.000147,5]
[422237133,1778740237000,-169.7,0.000147,2]
[422237132,1778740237000,-186.55187967,0.000147,2]
[422237130,1778740237000,-3860.77401876,0.00014659,2]
[422237185,1778740238000,-3860.77401876,0.00014801,2]
[422237191,1778740238000,-214.42,0.00014814,2]
[422237193,1778740238000,-500.0,0.00014816,2]
[422237189,1778740238000,-347.0,0.00014809,2]
[422237183,1778740238000,-368.0,0.00014801,2]
[422237175,1778740238000,-577.21677654,0.00014796,2]
[422237181,1778740238000,-400.0,0.000148,5]
[422237177,1778740238000,-347.0,0.00014799,2]
[422237173,1778740238000,-220.67775096,0.00014796,2]
[422237195,1778740238000,-347.0,0.00014822,2]
[422237171,1778740238000,-4280.11482937,0.00014796,2]
[422237179,1778740238000,-3407.43517566,0.000148,2]
[422237197,1778740238000,-347.0,0.0001483,2]
[422237211,1778740238000,-3860.77401876,0.00014849,2]
[422237201,1778740238000,-347.0,0.00014833,2]
[422237199,1778740238000,-347.0,0.0001483,2]
[422237203,1778740238000,-347.0,0.00014837,2]
[422237169,1778740238000,-347.0,0.00014783,2]
[422237205,1778740238000,-504.23682031,0.00014837,2]
[422237207,1778740238000,-347.0,0.00014839,2]
[422237209,1778740238000,-3407.43517566,0.00014848,2]
[422237223,1778740238000,-169.0,0.00014877,2]
[422237213,1778740238000,-10000.0,0.0001485,2]
[422237225,1778740238000,-347.0,0.00014879,2]
[422237215,1778740238000,-419.42017,0.0001485,2]
[422237227,1778740238000,-1000.0,0.0001488,2]
[422237221,1778740238000,-419.42018,0.0001486,2]
[422237187,1778740238000,-347.0,0.00014805,2]
[422237170,1778740238000,-1000.0,0.00014784,2]
[422237162,1778740238000,-500.0,0.00014778,2]
[422237166,1778740238000,-500.0,0.00014778,2]
[422237219,1778740238000,-347.0,0.00014857,2]
[422237139,1778740238000,-347.0,0.00014733,2]
[422237140,1778740238000,-347.0,0.00014742,2]
[422237142,1778740238000,-3407.43517566,0.00014752,2]
[422237148,1778740238000,-500.0,0.00014778,2]
[422237143,1778740238000,-347.0,0.00014753,2]
[422237141,1778740238000,-367.18619809,0.00014746,2]
[422237149,1778740238000,-500.0,0.00014778,2]
[422237145,1778740238000,-504.23682031,0.00014774,2]
[422237146,1778740238000,-347.0,0.00014777,2]
[422237147,1778740238000,-500.0,0.00014778,2]
[422237152,1778740238000,-500.0,0.00014778,2]
[422237150,1778740238000,-500.0,0.00014778,2]
[422237151,1778740238000,-500.0,0.00014778,2]
[422237153,1778740238000,-500.0,0.00014778,2]
[422237155,1778740238000,-500.0,0.00014778,2]
[422237161,1778740238000,-500.0,0.00014778,2]
[422237154,1778740238000,-500.0,0.00014778,2]
[422237156,1778740238000,-500.0,0.00014778,2]
[422237159,1778740238000,-500.0,0.00014778,2]
[422237157,1778740238000,-500.0,0.00014778,2]
[422237160,1778740238000,-500.0,0.00014778,2]
[422237158,1778740238000,-500.0,0.00014778,2]
[422237165,1778740238000,-500.0,0.00014778,2]
[422237164,1778740238000,-500.0,0.00014778,2]
[422237163,1778740238000,-500.0,0.00014778,2]
[422237167,1778740238000,-264.89014969,0.00014778,2]
[422237168,1778740238000,-347.0,0.00014782,2]
[422237217,1778740238000,-419.42018,0.0001485,2]
[422237144,1778740238000,-3860.77401876,0.00014754,2]
[422237230,1778740238000,-200.0,0.0001488,2]
[422237304,1778740238000,-300.0,0.00014995,2]
[422237306,1778740238000,-300.0,0.00014995,2]
[422237311,1778740238000,-92200.7376185,0.00014996,2]
[422237308,1778740238000,-300.0,0.00014995,2]
[422237325,1778740238000,-151.0,0.00014996,2]
[422237312,1778740238000,-2282.7615529,0.00014996,2]
[422237323,1778740238000,-151.0,0.00014996,2]
[422237314,1778740238000,-1664210.1860116,0.00014996,2]
[422237326,1778740238000,-197.671785,0.00014996,2]
[422237318,1778740238000,-180.979626,0.00014996,2]
[422237329,1778740238000,-151.0,0.00014997,2]
[422237316,1778740238000,-151.0,0.00014996,2]
[422237320,1778740238000,-151.0,0.00014996,2]
[422237302,1778740238000,-347.0,0.00014994,2]
[422237332,1778740238000,-730.31714484,0.00014999,2]
[422237337,1778740238000,-300.0,0.00014999,2]
[422237334,1778740238000,-213.65549756,0.00014999,2]
[422237339,1778740238000,-187.16915046,0.00014999,2]
[422237350,1778740238000,-2599.0,0.00015,5]
[422237348,1778740238000,-3542.0,0.00014999,2]
[422237345,1778740238000,-1233.176,0.00014999,2]
[422237341,1778740238000,-1270.0,0.00014999,2]
[422237343,1778740238000,-150.0,0.00014999,2]
[422237356,1778740238000,-1038611.34889384,0.00015,2]
[422237354,1778740238000,-872478.46764708,0.00015,2]
[422237352,1778740238000,-150.0,0.00015,2]
[422237346,1778740238000,-1354.0,0.00014999,2]
[422237232,1778740238000,-309.06011324,0.00014886,2]
[422237330,1778740238000,-347.0,0.00014997,2]
[422237300,1778740238000,-309.06011324,0.0001499,2]
[422237298,1778740238000,-347.0,0.00014988,2]
[422237261,1778740238000,-347.0,0.0001492,2]
[422237238,1778740238000,-3407.43517566,0.00014896,2]
[422237240,1778740238000,-347.0,0.00014898,2]
[422237242,1778740238000,-2257.67,0.000149,2]
[422237246,1778740238000,-2557.0,0.000149,5]
[422237248,1778740238000,-400.0,0.000149,5]
[422237250,1778740238000,-504.23682031,0.000149,2]
[422237253,1778740238000,-336.79903888,0.000149,2]
[422237244,1778740238000,-6643.51158342,0.000149,3]
[422237255,1778740238000,-347.0,0.00014904,2]
[422237257,1778740238000,-347.0,0.0001491,2]
[422237259,1778740238000,-347.0,0.00014916,2]
[422237290,1778740238000,-279.88135709,0.00014986,2]
[422237263,1778740238000,-176.66666667,0.00014932,2]
[422237275,1778740238000,-6111.0,0.00014955,2]
[422237266,1778740238000,-176.66666667,0.00014932,2]
[422237268,1778740238000,-176.66666667,0.00014932,2]
[422237273,1778740238000,-347.0,0.00014932,2]
[422237278,1778740238000,-7352.9715592,0.00014957,2]
[422237277,1778740238000,-181.7147456,0.00014957,2]
[422237282,1778740238000,-347.0,0.00014982,2]
[422237280,1778740238000,-347.0,0.00014976,2]
[422237284,1778740238000,-347.0,0.00014983,2]
[422237288,1778740238000,-278.33797665,0.00014986,2]
[422237286,1778740238000,-1000.0,0.00014983,2]
[422237295,1778740238000,-288.37111373,0.00014986,2]
[422237297,1778740238000,-1000.0,0.00014987,2]
[422237292,1778740238000,-295.65448493,0.00014986,2]
[422237236,1778740238000,-3860.77401876,0.00014896,2]
[422237234,1778740238000,-1500000.0,0.00014896,2]
[422237400,1778740239000,-598.26313241,0.00015,2]
[422237386,1778740239000,-579.78867862,0.00015,2]
[422237402,1778740239000,-1049.53799999,0.00015,2]
[422237388,1778740239000,-641.39253064,0.00015,2]
[422237398,1778740239000,-2592.62594964,0.00015,2]
[422237393,1778740239000,-877.7636325,0.00015,2]
[422237396,1778740239000,-49182.04045867,0.00015,2]
[422237406,1778740239000,-5344.8976806,0.00015,2]
[422237417,1778740240000,-4127.51828269,0.00015,2]
[422237416,1778740240000,-186.55187967,0.000147,2]
[422237415,1778740240000,-509.32134718,0.00015,2]
[422237414,1778740240000,-90.59391577,0.00015,2]
[422237412,1778740240000,-1125.0,0.00015,5]
[422237413,1778740240000,-888370.01416397,0.00015,2]
[422237411,1778740240000,-481.54,0.00015,2]
[422237408,1778740240000,-1742.21980178,0.00015,2]
[422237410,1778740240000,-1131.693862,0.00015,2]
[422237409,1778740240000,-1000.0,0.00015,2]
[422237407,1778740240000,-694.05013024,0.00015,2]
[422237429,1778740242000,-556.3861,0.00015,2]
[422237428,1778740242000,-77.0339389,0.00015,2]
[422237431,1778740242000,-1075.54392832,0.00015,2]
[422237430,1778740242000,-186.55187968,0.000147,2]
[422237440,1778740246000,-1244.78645993,0.00014819,2]
[422237467,1778740275000,6657.372206,0.00027,120]
[422237468,1778740316000,3313.20122839,0.00027397,120]
[422237469,1778740332000,150.0,0.00015,120]
[422237470,1778740383000,528.31,0.000271,120]
[422237471,1778740384000,408.08,0.00023,120]
[422237472,1778740384000,237.62,0.0002,120]
[422237473,1778740384000,315.26,0.00021,120]
[422237474,1778740461000,250.0,0.00014,2]
[422237475,1778740464000,151.65,0.00013885,2]
[422237476,1778740497000,23836.16,0.00013854,2]
[422237477,1778740517000,190.67,0.00015,120]
[422237480,1778740622000,166.39,0.00013835,2]
[422237481,1778740662000,200.0,0.000138,5]
[422237482,1778740664000,400.0,0.000139,5]
[422237483,1778740670000,287.24,0.00013725,2]
[422237486,1778740786000,161.3,0.0001354,2]
[422237487,1778740885000,1580.43,0.00013435,2]
[422237488,1778740941000,2000.0,0.00013479,2]
[422237489,1778740984000,223.5,0.00027397,120]
[422237490,1778741031000,-150.0,0.00014146,2]
[422237491,1778741037000,-150.0,0.00014196,2]
[422237492,1778741046000,-150.0,0.00014196,2]
[422237493,1778741073000,1427.346,0.00027397,120]
[422237494,1778741093000,1598.0,0.000134,2]
[422237495,1778741115000,278.33797664,0.00013488,2]
[422237496,1778741117000,279.88135709,0.00013488,2]
[422237498,1778741123000,150.0,0.00013488,2]
[422237497,1778741123000,288.37111373,0.00013488,2]
[422237499,1778741204000,214.46,0.00013541,2]
[422237500,1778741251000,300.0,0.000138,5]
[422237501,1778741253000,700.0,0.000139,5]
[422237503,1778741297000,164.41,0.00023,120]
[422237502,1778741297000,205.98,0.000271,120]
[422237513,1778741432000,-484.94859545,0.00014211,2]
[422237539,1778741440000,-347.24168749,0.00014245,2]
[422237534,1778741440000,-300.0,0.00014242,2]
[422237538,1778741440000,-500.0,0.00014245,2]
[422237537,1778741440000,-500.0,0.00014245,2]
[422237536,1778741440000,-163.95933787,0.00014245,2]
[422237535,1778741440000,-307.21090482,0.00014242,2]
[422237541,1778741440000,-224.72652725,0.00014245,2]
[422237533,1778741440000,-2500.0,0.00014242,2]
[422237530,1778741440000,-300.0,0.00014241,2]
[422237531,1778741440000,-1200.0,0.00014241,2]
[422237529,1778741440000,-300.0,0.00014211,2]
[422237528,1778741440000,-2015.05140455,0.00014211,2]
[422237532,1778741440000,-2500.0,0.00014242,2]
[422237543,1778741440000,-500.0,0.00014245,2]
[422237555,1778741440000,-3251.87534076,0.00014246,2]
[422237540,1778741440000,-270.73132678,0.00014245,2]
[422237544,1778741440000,-230.73718667,0.00014245,2]
[422237556,1778741440000,-244.05013024,0.00014246,2]
[422237553,1778741440000,-875429.37689614,0.00014246,2]
[422237552,1778741440000,-2500.0,0.00014246,2]
[422237551,1778741440000,-506.72928071,0.00014245,2]
[422237550,1778741440000,-500.0,0.00014245,2]
[422237554,1778741440000,-399.225,0.00014246,2]
[422237549,1778741440000,-500.0,0.00014245,2]
[422237546,1778741440000,-500.0,0.00014245,2]
[422237547,1778741440000,-500.0,0.00014245,2]
[422237545,1778741440000,-500.0,0.00014245,2]
[422237542,1778741440000,-254.70327547,0.00014245,2]
[422237548,1778741440000,-500.0,0.00014245,2]
[422237569,1778741441000,-164.099,0.00014345,2]
[422237575,1778741441000,-150.0,0.00014411,2]
[422237576,1778741441000,-3088.619215,0.00014431,2]
[422237572,1778741441000,-3088.619215,0.00014364,2]
[422237573,1778741441000,-2725.94814052,0.00014397,2]
[422237574,1778741441000,-206.04007549,0.00014402,2]
[422237570,1778741441000,-241463.6088,0.00014346,2]
[422237571,1778741441000,-150.0,0.00014352,2]
[422237567,1778741441000,-150.0,0.00014344,2]
[422237560,1778741441000,-620675.47263286,0.00014246,2]
[422237565,1778741441000,-192.96894258,0.00014334,2]
[422237566,1778741441000,-378.17761525,0.00014334,2]
[422237562,1778741441000,-2257.67,0.00014312,2]
[422237564,1778741441000,-2725.9481406,0.00014334,2]
[422237577,1778741441000,-152.0,0.00014434,7]
[422237561,1778741441000,-3088.61921508,0.00014297,2]
[422237559,1778741441000,152.13,7.758e-05,2]
[422237558,1778741441000,152.13,7.317e-05,2]
[422237557,1778741441000,152.13,6.877e-05,2]
[422237568,1778741441000,-1316.655,0.00014345,2]
[422237579,1778741441000,-152.0,0.00014482,7]
[422237563,1778741441000,-5000.0,0.00014312,2]
[422237582,1778741441000,-3088.619215,0.00014498,2]
[422237627,1778741441000,-500.0,0.00014633,2]
[422237624,1778741441000,-500.0,0.00014633,2]
[422237619,1778741441000,-500.0,0.00014633,2]
[422237616,1778741441000,-500.0,0.00014633,2]
[422237621,1778741441000,-500.0,0.00014633,2]
[422237614,1778741441000,-500.0,0.00014633,2]
[422237578,1778741441000,-2725.94814052,0.0001446,2]
[422237611,1778741441000,-500.0,0.00014633,2]
[422237609,1778741441000,-500.0,0.00014633,2]
[422237607,1778741441000,-500.0,0.00014633,2]
[422237603,1778741441000,-789.58,0.00014601,2]
[422237600,1778741441000,-1400.0,0.000146,5]
[422237605,1778741441000,-3088.619215,0.00014632,2]
[422237592,1778741441000,-224.5326926,0.0001456,2]
[422237590,1778741441000,-367.18619809,0.00014546,2]
[422237594,1778741441000,-3088.619215,0.00014565,2]
[422237580,1778741441000,-151.0,0.00014495,2]
[422237586,1778741441000,-152.0,0.00014503,7]
[422237588,1778741441000,-2725.94814052,0.00014523,2]
[422237596,1778741441000,-159.0,0.00014582,2]
[422237598,1778741441000,-2725.94814052,0.00014586,2]
[422237583,1778741441000,-1000.0,0.000145,5]
[422237676,1778741442000,-489.0,0.0001476,2]
[422237677,1778741442000,-3088.619215,0.00014766,2]
[422237678,1778741442000,-256.0,0.00014769,2]
[422237679,1778741442000,-2725.94814052,0.00014774,2]
[422237680,1778741442000,-176.66666667,0.00014776,2]
[422237683,1778741442000,-300.0,0.000148,5]
[422237685,1778741442000,-6111.0,0.00014828,2]
[422237681,1778741442000,-176.66666667,0.00014776,2]
[422237682,1778741442000,-176.66666667,0.00014776,2]
[422237696,1778741442000,-357.0,0.00014888,2]
[422237684,1778741442000,-7644.21354007,0.00014819,2]
[422237687,1778741442000,-2725.94814052,0.00014837,2]
[422237689,1778741442000,-368.88443664,0.0001485,2]
[422237688,1778741442000,-10000.0,0.0001485,2]
[422237691,1778741442000,-386.16164,0.0001485,2]
[422237690,1778741442000,-386.16163,0.0001485,2]
[422237694,1778741442000,-1000.0,0.0001488,2]
[422237692,1778741442000,-386.16164,0.0001486,2]
[422237693,1778741442000,-789.58,0.00014875,2]
[422237672,1778741442000,-2725.94814052,0.00014711,2]
[422237686,1778741442000,-3088.619215,0.00014833,2]
[422237673,1778741442000,-10388.41858632,0.00014714,2]
[422237662,1778741442000,-7494.12886146,0.0001466,2]
[422237675,1778741442000,-347.0,0.00014756,2]
[422237695,1778741442000,-200.0,0.0001488,2]
[422237629,1778741442000,-500.0,0.00014633,2]
[422237632,1778741442000,-500.0,0.00014633,2]
[422237634,1778741442000,-500.0,0.00014633,2]
[422237641,1778741442000,-500.0,0.00014633,2]
[422237644,1778741442000,-500.0,0.00014633,2]
[422237637,1778741442000,-500.0,0.00014633,2]
[422237639,1778741442000,-500.0,0.00014633,2]
[422237646,1778741442000,-500.0,0.00014633,2]
[422237648,1778741442000,-500.0,0.00014633,2]
[422237650,1778741442000,-500.0,0.00014633,2]
[422237653,1778741442000,-500.0,0.00014633,2]